[Event "Early Titled Tuesday Blitz | February 8 2022"]
[White "Kazarian, Anna-Maja"]
[Black "Shuvalova, Polina"]
[WhiteFideId "1033689"]
[BlackFideId "24171760"]
[WhiteElo "2004"]
[BlackElo "2355"]
[Result "0-1"]
[Round "03"]
[TimeControl "180+1"]
[Date "2022.02.08"]
[WhiteClock "0:00:01"]
[BlackClock "0:00:51"]

1. e4 {[%clk 0:03:00]}  c6 {[%clk 0:03:00]} 2. d4 {[%clk 0:03:00]}  d5 {[%clk 0:03:01]} 3. exd5 {[%clk 0:02:52]}  cxd5 {[%clk 0:03:01]} 4. c4 {[%clk 0:02:52]}  Nf6 {[%clk 0:03:01]} 5. Nc3 {[%clk 0:02:52]}  e6 {[%clk 0:03:01]} 6. Bd3 {[%clk 0:02:52]}  dxc4 {[%clk 0:03:01]} 7. Bxc4 {[%clk 0:02:53]}  Bb4 {[%clk 0:02:57]} 8. Ne2 {[%clk 0:02:53]}  O-O {[%clk 0:02:57]} 9. O-O {[%clk 0:02:53]}  b6 {[%clk 0:02:57]} 10. Bg5 {[%clk 0:02:51]}  Bb7 {[%clk 0:02:57]} 11. Rc1 {[%clk 0:02:50]}  Nbd7 {[%clk 0:02:57]} 12. Qd3 {[%clk 0:02:41]}  Rc8 {[%clk 0:02:56]} 13. a3 {[%clk 0:02:31]}  Be7 {[%clk 0:02:55]} 14. Rfd1 {[%clk 0:02:30]}  h6 {[%clk 0:02:53]} 15. Bh4 {[%clk 0:02:30]}  Nd5 {[%clk 0:02:47]} 16. Bg3 {[%clk 0:02:20]}  Bg5 {[%clk 0:02:43]} 17. f4 {[%clk 0:02:05]}  Bf6 {[%clk 0:02:41]} 18. f5 {[%clk 0:01:51]}  Nxc3 {[%clk 0:02:30]} 19. bxc3 {[%clk 0:01:47]}  exf5 {[%clk 0:02:29]} 20. Bb3 {[%clk 0:01:31]}  Be4 {[%clk 0:02:29]} 21. Qd2 {[%clk 0:01:22]}  Qe7 {[%clk 0:02:28]} 22. a4 {[%clk 0:01:14]}  Rfd8 {[%clk 0:02:26]} 23. Nf4 {[%clk 0:01:11]}  Nc5 {[%clk 0:02:25]} 24. Qb2 {[%clk 0:01:04]}  Nxb3 {[%clk 0:02:22]} 25. Qxb3 {[%clk 0:01:05]}  g6 {[%clk 0:02:11]} 26. Nxg6 {[%clk 0:01:01]}  Qe6 {[%clk 0:02:10]} 27. Qxe6 {[%clk 0:00:58]}  fxe6 {[%clk 0:02:11]} 28. Nf4 {[%clk 0:00:58]}  Kf7 {[%clk 0:02:11]} 29. Nd3 {[%clk 0:00:53]}  Bxd3 {[%clk 0:02:10]} 30. Rxd3 {[%clk 0:00:51]}  Rc4 {[%clk 0:02:10]} 31. Bf2 {[%clk 0:00:47]}  Rxa4 {[%clk 0:02:10]} 32. Re1 {[%clk 0:00:39]}  Rc4 {[%clk 0:02:06]} 33. Rde3 {[%clk 0:00:38]}  Rc6 {[%clk 0:02:05]} 34. Ra1 {[%clk 0:00:36]}  a5 {[%clk 0:02:05]} 35. h3 {[%clk 0:00:34]}  h5 {[%clk 0:02:03]} 36. Rf3 {[%clk 0:00:32]}  Rd5 {[%clk 0:02:00]} 37. Ra4 {[%clk 0:00:28]}  Rb5 {[%clk 0:01:59]} 38. c4 {[%clk 0:00:26]}  Rb4 {[%clk 0:01:54]} 39. Rxb4 {[%clk 0:00:26]}  axb4 {[%clk 0:01:55]} 40. c5 {[%clk 0:00:22]}  bxc5 {[%clk 0:01:48]} 41. dxc5 {[%clk 0:00:23]}  Ra6 {[%clk 0:01:44]} 42. Rd3 {[%clk 0:00:08]}  Bc3 {[%clk 0:01:39]} 43. Rd7+ {[%clk 0:00:07]}  Ke8 {[%clk 0:01:29]} 44. Rb7 {[%clk 0:00:08]}  Kd8 {[%clk 0:01:19]} 45. Bg3 {[%clk 0:00:03]}  Bd4+ {[%clk 0:01:16]} 46. Kf1 {[%clk 0:00:03]}  Bxc5 {[%clk 0:01:16]} 47. Ke2 {[%clk 0:00:02]}  Kc8 {[%clk 0:01:14]} 48. Rb5 {[%clk 0:00:02]}  Rc6 {[%clk 0:01:14]} 49. Kf3 {[%clk 0:00:01]}  Be7 {[%clk 0:01:06]} 50. Be5 {[%clk 0:00:01]}  Kd7 {[%clk 0:01:05]} 51. Kf4 {[%clk 0:00:01]}  Ke8 {[%clk 0:01:05]} 52. Rb7 {[%clk 0:00:01]}  Rc4+ {[%clk 0:01:05]} 53. Kf3 {[%clk 0:00:02]}  Re4 {[%clk 0:01:03]} 54. Bf4 {[%clk 0:00:01]}  h4 {[%clk 0:01:03]} 55. Be3 {[%clk 0:00:01]}  Rc4 {[%clk 0:01:01]} 56. Bd2 {[%clk 0:00:01]}  Bd6 {[%clk 0:00:59]} 57. Ke2 {[%clk 0:00:01]}  e5 {[%clk 0:00:58]} 58. Kd3 {[%clk 0:00:02]}  Rd4+ {[%clk 0:00:58]} 59. Kc2 {[%clk 0:00:02]}  Be7 {[%clk 0:00:58]} 60. Be1 {[%clk 0:00:02]}  Rc4+ {[%clk 0:00:58]} 61. Kb3 {[%clk 0:00:02]}  Re4 {[%clk 0:00:58]} 62. Bd2 {[%clk 0:00:01]}  Re2 {[%clk 0:00:59]} 63. Bxb4 {[%clk 0:00:01]}  Bxb4 {[%clk 0:00:56]} 64. Rxb4 {[%clk 0:00:02]}  Rxg2 {[%clk 0:00:56]} 65. Rxh4 {[%clk 0:00:02]}  Kf7 {[%clk 0:00:54]} 66. Kc4 {[%clk 0:00:02]}  Kf6 {[%clk 0:00:54]} 67. Kd3 {[%clk 0:00:03]}  Kg5 {[%clk 0:00:54]} 68. Rh8 {[%clk 0:00:03]}  Kf4 {[%clk 0:00:54]} 69. h4 {[%clk 0:00:03]}  e4+ {[%clk 0:00:54]} 70. Kd4 {[%clk 0:00:03]}  e3 {[%clk 0:00:54]} 71. h5 {[%clk 0:00:04]}  Kf3 {[%clk 0:00:51]} 72. h6 {[%clk 0:00:03]}  f4 {[%clk 0:00:52]} 73. h7 {[%clk 0:00:02]}  Rd2+ {[%clk 0:00:52]} 74. Kc3 {[%clk 0:00:02]}  Rh2 {[%clk 0:00:53]} 75. Kd3 {[%clk 0:00:02]}  e2 {[%clk 0:00:52]} 76. Kd2 {[%clk 0:00:03]}  Kf2 {[%clk 0:00:52]} 77. Re8 {[%clk 0:00:03]}  f3 {[%clk 0:00:51]} 78. h8=Q {[%clk 0:00:01]}  Rxh8 {[%clk 0:00:51]} 0-1


[Site "https://www.chess.com"]

[Event "Early Titled Tuesday Blitz | February 8 2022"]
[White "Khamzin, Olzhas"]
[Black "Stanisz, Patryk"]
[WhiteFideId "13701690"]
[BlackFideId "1123106"]
[WhiteElo "2194"]
[BlackElo "1876"]
[Result "1-0"]
[Round "03"]
[TimeControl "180+1"]
[Date "2022.02.08"]
[WhiteClock "0:00:24"]
[BlackClock "0:00:07"]

1. d4 {[%clk 0:03:00]}  Nf6 {[%clk 0:02:59]} 2. Nc3 {[%clk 0:02:58]}  c5 {[%clk 0:02:55]} 3. Bg5 {[%clk 0:02:57]}  cxd4 {[%clk 0:02:53]} 4. Qxd4 {[%clk 0:02:58]}  Nc6 {[%clk 0:02:53]} 5. Qa4 {[%clk 0:02:57]}  g6 {[%clk 0:02:49]} 6. Bxf6 {[%clk 0:02:56]}  exf6 {[%clk 0:02:50]} 7. O-O-O {[%clk 0:02:56]}  Bg7 {[%clk 0:02:49]} 8. e4 {[%clk 0:02:57]}  O-O {[%clk 0:02:49]} 9. f4 {[%clk 0:02:56]}  a6 {[%clk 0:02:47]} 10. Nf3 {[%clk 0:02:56]}  b5 {[%clk 0:02:46]} 11. Bxb5 {[%clk 0:02:56]}  Rb8 {[%clk 0:02:45]} 12. Bxc6 {[%clk 0:02:55]}  Qb6 {[%clk 0:02:45]} 13. Qb3 {[%clk 0:02:43]}  dxc6 {[%clk 0:02:45]} 14. Qxb6 {[%clk 0:02:43]}  Rxb6 {[%clk 0:02:45]} 15. Rd6 {[%clk 0:02:39]}  Bg4 {[%clk 0:02:39]} 16. Rhd1 {[%clk 0:02:39]}  Bh6 {[%clk 0:02:37]} 17. Ne2 {[%clk 0:02:37]}  Rfb8 {[%clk 0:02:30]} 18. b3 {[%clk 0:02:36]}  Bf8 {[%clk 0:02:29]} 19. Rxf6 {[%clk 0:02:28]}  Kg7 {[%clk 0:02:22]} 20. e5 {[%clk 0:02:26]}  a5 {[%clk 0:02:17]} 21. Nc3 {[%clk 0:02:21]}  Rb4 {[%clk 0:02:03]} 22. a3 {[%clk 0:01:49]}  R4b6 {[%clk 0:01:57]} 23. Kb2 {[%clk 0:01:48]}  Be7 {[%clk 0:01:37]} 24. Ne4 {[%clk 0:01:46]}  a4 {[%clk 0:01:18]} 25. Nfg5 {[%clk 0:01:23]}  axb3 {[%clk 0:00:58]} 26. Rxf7+ {[%clk 0:01:22]}  Kg8 {[%clk 0:00:58]} 27. Rxe7 {[%clk 0:00:55]}  bxc2+ {[%clk 0:00:21]} 28. Kxc2 {[%clk 0:00:56]}  Bxd1+ {[%clk 0:00:19]} 29. Kxd1 {[%clk 0:00:52]}  Rb1+ {[%clk 0:00:17]} 30. Ke2 {[%clk 0:00:52]}  R1b2+ {[%clk 0:00:17]} 31. Kf1 {[%clk 0:00:41]}  Rb1+ {[%clk 0:00:14]} 32. Kf2 {[%clk 0:00:41]}  R1b2+ {[%clk 0:00:14]} 33. Kg3 {[%clk 0:00:41]}  R2b7 {[%clk 0:00:14]} 34. Nf6+ {[%clk 0:00:41]}  Kf8 {[%clk 0:00:15]} 35. Rxh7 {[%clk 0:00:29]}  Rxh7 {[%clk 0:00:14]} 36. Ngxh7+ {[%clk 0:00:29]}  Kg7 {[%clk 0:00:15]} 37. Ng5 {[%clk 0:00:30]}  Ra8 {[%clk 0:00:15]} 38. Ne6+ {[%clk 0:00:29]}  Kf7 {[%clk 0:00:15]} 39. Nd4 {[%clk 0:00:29]}  c5 {[%clk 0:00:15]} 40. Nb5 {[%clk 0:00:28]}  Ra5 {[%clk 0:00:14]} 41. Nd6+ {[%clk 0:00:28]}  Ke6 {[%clk 0:00:14]} 42. Kg4 {[%clk 0:00:27]}  Rxa3 {[%clk 0:00:13]} 43. Kg5 {[%clk 0:00:27]}  Ra4 {[%clk 0:00:10]} 44. g4 {[%clk 0:00:27]}  c4 {[%clk 0:00:10]} 45. Nfe4 {[%clk 0:00:27]}  Kd5 {[%clk 0:00:04]} 46. Nc3+ {[%clk 0:00:26]}  Ke6 {[%clk 0:00:03]} 47. Nxa4 {[%clk 0:00:27]}  Ke7 {[%clk 0:00:03]} 48. f5 {[%clk 0:00:26]}  c3 {[%clk 0:00:03]} 49. Nxc3 {[%clk 0:00:25]}  gxf5 {[%clk 0:00:04]} 50. Nd5+ {[%clk 0:00:26]}  Kf8 {[%clk 0:00:04]} 51. gxf5 {[%clk 0:00:26]}  Kg7 {[%clk 0:00:05]} 52. e6 {[%clk 0:00:26]}  Kf8 {[%clk 0:00:06]} 53. e7+ {[%clk 0:00:25]}  Kg7 {[%clk 0:00:06]} 54. f6+ {[%clk 0:00:26]}  Kh7 {[%clk 0:00:07]} 55. f7 {[%clk 0:00:26]}  Kg7 {[%clk 0:00:06]} 56. f8=Q+ {[%clk 0:00:26]}  Kh7 {[%clk 0:00:07]} 57. Nf6# {[%clk 0:00:24]} 1-0


[Site "https://www.chess.com"]

[Event "Early Titled Tuesday Blitz | February 8 2022"]
[White "Khoroshev, Nikita"]
[Black "Bortnyk, Olexandr"]
[WhiteFideId "14200287"]
[BlackFideId "14120828"]
[WhiteElo "2354"]
[BlackElo "2723"]
[Result "0-1"]
[Round "03"]
[TimeControl "180+1"]
[Date "2022.02.08"]
[WhiteClock "0:00:09"]
[BlackClock "0:00:14"]

1. e4 {[%clk 0:03:00]}  Nf6 {[%clk 0:02:59]} 2. Nc3 {[%clk 0:02:51]}  d5 {[%clk 0:02:56]} 3. e5 {[%clk 0:02:51]}  Nfd7 {[%clk 0:02:56]} 4. f4 {[%clk 0:02:35]}  c5 {[%clk 0:02:56]} 5. Nf3 {[%clk 0:02:27]}  Nc6 {[%clk 0:02:56]} 6. g3 {[%clk 0:02:19]}  e6 {[%clk 0:02:43]} 7. Bg2 {[%clk 0:02:19]}  Be7 {[%clk 0:02:44]} 8. O-O {[%clk 0:02:17]}  O-O {[%clk 0:02:45]} 9. d3 {[%clk 0:02:14]}  f6 {[%clk 0:02:38]} 10. exf6 {[%clk 0:02:06]}  Bxf6 {[%clk 0:02:35]} 11. Re1 {[%clk 0:01:56]}  Re8 {[%clk 0:02:30]} 12. Ng5 {[%clk 0:01:27]}  Nf8 {[%clk 0:02:13]} 13. Bd2 {[%clk 0:01:12]}  Bd7 {[%clk 0:02:02]} 14. Kh1 {[%clk 0:00:35]}  Nd4 {[%clk 0:01:42]} 15. Nf3 {[%clk 0:00:31]}  Nxf3 {[%clk 0:01:40]} 16. Qxf3 {[%clk 0:00:31]}  Bc6 {[%clk 0:01:40]} 17. Qg4 {[%clk 0:00:30]}  b5 {[%clk 0:01:33]} 18. a3 {[%clk 0:00:24]}  a5 {[%clk 0:01:29]} 19. Rab1 {[%clk 0:00:18]}  b4 {[%clk 0:01:28]} 20. Nd1 {[%clk 0:00:18]}  Qd7 {[%clk 0:01:19]} 21. Nf2 {[%clk 0:00:17]}  Bd4 {[%clk 0:00:44]} 22. Nh3 {[%clk 0:00:14]}  Rab8 {[%clk 0:00:31]} 23. axb4 {[%clk 0:00:13]}  axb4 {[%clk 0:00:31]} 24. Ng5 {[%clk 0:00:11]}  Bf6 {[%clk 0:00:25]} 25. Nf3 {[%clk 0:00:10]}  Ng6 {[%clk 0:00:24]} 26. h4 {[%clk 0:00:08]}  d4 {[%clk 0:00:19]} 27. h5 {[%clk 0:00:08]}  Ne7 {[%clk 0:00:20]} 28. Rxe6 {[%clk 0:00:05]}  Bd5 {[%clk 0:00:20]} 29. f5 {[%clk 0:00:03]}  Bxe6 {[%clk 0:00:17]} 30. fxe6 {[%clk 0:00:04]}  Qd5 {[%clk 0:00:15]} 31. Re1 {[%clk 0:00:04]}  Qf5 {[%clk 0:00:15]} 32. Qxf5 {[%clk 0:00:03]}  Nxf5 {[%clk 0:00:16]} 33. g4 {[%clk 0:00:04]}  Ne3 {[%clk 0:00:16]} 34. g5 {[%clk 0:00:03]}  Nxg2 {[%clk 0:00:13]} 35. Kxg2 {[%clk 0:00:03]}  Be7 {[%clk 0:00:14]} 36. Bf4 {[%clk 0:00:03]}  Rb6 {[%clk 0:00:14]} 37. Re4 {[%clk 0:00:02]}  Ra8 {[%clk 0:00:12]} 38. h6 {[%clk 0:00:02]}  Ra2 {[%clk 0:00:12]} 39. Kg3 {[%clk 0:00:02]}  Rxb2 {[%clk 0:00:12]} 40. hxg7 {[%clk 0:00:03]}  Rxc2 {[%clk 0:00:12]} 41. Ne5 {[%clk 0:00:03]}  Rxe6 {[%clk 0:00:12]} 42. Ng4 {[%clk 0:00:04]}  Rxe4 {[%clk 0:00:12]} 43. dxe4 {[%clk 0:00:05]}  Kxg7 {[%clk 0:00:13]} 44. Be5+ {[%clk 0:00:05]}  Kg6 {[%clk 0:00:13]} 45. Bf6 {[%clk 0:00:06]}  Bxf6 {[%clk 0:00:13]} 46. gxf6 {[%clk 0:00:07]}  Re2 {[%clk 0:00:14]} 47. e5 {[%clk 0:00:08]}  b3 {[%clk 0:00:14]} 48. Kf3 {[%clk 0:00:09]}  Re1 {[%clk 0:00:14]} 0-1


[Site "https://www.chess.com"]

[Event "Early Titled Tuesday Blitz | February 8 2022"]
[White "Komissarov, Alexey"]
[Black "Mirzanurov, Bulat"]
[WhiteFideId "4176545"]
[BlackFideId "4184521"]
[WhiteElo "2216"]
[BlackElo "2116"]
[Result "0-1"]
[Round "03"]
[TimeControl "180+1"]
[Date "2022.02.08"]
[WhiteClock "0:00:02"]
[BlackClock "0:00:20"]

1. e4 {[%clk 0:03:00]}  c5 {[%clk 0:02:58]} 2. a3 {[%clk 0:02:59]}  d6 {[%clk 0:02:55]} 3. b4 {[%clk 0:02:57]}  Nf6 {[%clk 0:02:51]} 4. Nc3 {[%clk 0:02:54]}  e5 {[%clk 0:02:48]} 5. Bc4 {[%clk 0:02:44]}  a6 {[%clk 0:02:43]} 6. d3 {[%clk 0:02:38]}  b5 {[%clk 0:02:37]} 7. Bb3 {[%clk 0:02:28]}  Bb7 {[%clk 0:02:34]} 8. f4 {[%clk 0:02:15]}  Nbd7 {[%clk 0:02:25]} 9. Nf3 {[%clk 0:02:08]}  Qc7 {[%clk 0:02:12]} 10. Ng5 {[%clk 0:01:29]}  c4 {[%clk 0:02:09]} 11. dxc4 {[%clk 0:01:30]}  bxc4 {[%clk 0:02:05]} 12. Ba4 {[%clk 0:01:23]}  h6 {[%clk 0:02:00]} 13. Nf3 {[%clk 0:01:14]}  Nxe4 {[%clk 0:01:53]} 14. Nxe4 {[%clk 0:01:10]}  Bxe4 {[%clk 0:01:49]} 15. fxe5 {[%clk 0:01:09]}  dxe5 {[%clk 0:01:44]} 16. O-O {[%clk 0:01:03]}  Bd6 {[%clk 0:01:34]} 17. Qe2 {[%clk 0:00:36]}  Bxf3 {[%clk 0:01:30]} 18. Qxf3 {[%clk 0:00:28]}  O-O {[%clk 0:01:29]} 19. Qg4 {[%clk 0:00:16]}  Rad8 {[%clk 0:00:44]} 20. Bxh6 {[%clk 0:00:11]}  g6 {[%clk 0:00:35]} 21. Bxf8 {[%clk 0:00:12]}  Nxf8 {[%clk 0:00:33]} 22. Rad1 {[%clk 0:00:08]}  Qb6+ {[%clk 0:00:29]} 23. Kh1 {[%clk 0:00:04]}  Qc7 {[%clk 0:00:23]} 24. Qe4 {[%clk 0:00:04]}  Kg7 {[%clk 0:00:21]} 25. Qc6 {[%clk 0:00:02]}  Qe7 {[%clk 0:00:20]} 0-1


[Site "https://www.chess.com"]

[Event "Early Titled Tuesday Blitz | February 8 2022"]
[White "Kouskoutis, Georgios-Alexandros"]
[Black "Oro, Luis"]
[WhiteFideId "4234049"]
[BlackFideId "104094"]
[WhiteElo "2130"]
[BlackElo "2263"]
[Result "1-0"]
[Round "03"]
[TimeControl "180+1"]
[Date "2022.02.08"]
[WhiteClock "0:00:08"]
[BlackClock "0:00:05"]

1. c4 {[%clk 0:03:00]}  Nf6 {[%clk 0:02:59]} 2. g3 {[%clk 0:03:01]}  g6 {[%clk 0:02:58]} 3. Bg2 {[%clk 0:03:02]}  Bg7 {[%clk 0:02:55]} 4. Nc3 {[%clk 0:03:02]}  O-O {[%clk 0:02:54]} 5. e4 {[%clk 0:03:03]}  d6 {[%clk 0:02:51]} 6. Nge2 {[%clk 0:03:03]}  Nc6 {[%clk 0:02:48]} 7. O-O {[%clk 0:03:03]}  e5 {[%clk 0:02:48]} 8. h3 {[%clk 0:03:03]}  Re8 {[%clk 0:02:45]} 9. d3 {[%clk 0:03:03]}  Ne7 {[%clk 0:02:41]} 10. Kh2 {[%clk 0:03:02]}  h6 {[%clk 0:02:40]} 11. f4 {[%clk 0:02:56]}  Nh7 {[%clk 0:02:28]} 12. g4 {[%clk 0:02:30]}  f5 {[%clk 0:02:25]} 13. gxf5 {[%clk 0:01:54]}  gxf5 {[%clk 0:02:24]} 14. Ng3 {[%clk 0:01:51]}  Rf8 {[%clk 0:02:16]} 15. exf5 {[%clk 0:01:20]}  Nxf5 {[%clk 0:02:12]} 16. Nxf5 {[%clk 0:01:19]}  Rxf5 {[%clk 0:02:10]} 17. Be4 {[%clk 0:01:00]}  Rf7 {[%clk 0:02:01]} 18. Bd5 {[%clk 0:00:41]}  Qh4 {[%clk 0:01:32]} 19. Qf3 {[%clk 0:00:40]}  exf4 {[%clk 0:01:22]} 20. Bxf7+ {[%clk 0:00:28]}  Kxf7 {[%clk 0:01:20]} 21. Qxf4+ {[%clk 0:00:28]}  Qxf4+ {[%clk 0:01:21]} 22. Bxf4 {[%clk 0:00:28]}  Kg8 {[%clk 0:01:17]} 23. Rae1 {[%clk 0:00:27]}  Bf5 {[%clk 0:01:15]} 24. Re7 {[%clk 0:00:23]}  Bf6 {[%clk 0:01:01]} 25. Nd5 {[%clk 0:00:14]}  Bxe7 {[%clk 0:00:37]} 26. Nxe7+ {[%clk 0:00:14]}  Kf7 {[%clk 0:00:38]} 27. Nxf5 {[%clk 0:00:15]}  Kg6 {[%clk 0:00:38]} 28. Ne7+ {[%clk 0:00:14]}  Kg7 {[%clk 0:00:37]} 29. Nd5 {[%clk 0:00:13]}  c6 {[%clk 0:00:33]} 30. Nc7 {[%clk 0:00:12]}  Rc8 {[%clk 0:00:29]} 31. Bxd6 {[%clk 0:00:12]}  Ng5 {[%clk 0:00:27]} 32. Bf4 {[%clk 0:00:06]}  Nf7 {[%clk 0:00:25]} 33. Ne6+ {[%clk 0:00:06]}  Kg6 {[%clk 0:00:23]} 34. d4 {[%clk 0:00:06]}  Re8 {[%clk 0:00:21]} 35. d5 {[%clk 0:00:06]}  cxd5 {[%clk 0:00:21]} 36. cxd5 {[%clk 0:00:07]}  Rc8 {[%clk 0:00:20]} 37. Bg3 {[%clk 0:00:07]}  Rc2+ {[%clk 0:00:18]} 38. Rf2 {[%clk 0:00:08]}  Rc1 {[%clk 0:00:16]} 39. Rd2 {[%clk 0:00:08]}  Kf6 {[%clk 0:00:07]} 40. Kg2 {[%clk 0:00:07]}  h5 {[%clk 0:00:05]} 41. Nf4 {[%clk 0:00:08]} 1-0


[Site "https://www.chess.com"]

[Event "Early Titled Tuesday Blitz | February 8 2022"]
[White "Kovanova, Baira"]
[Black "Niyazgulova, Marina"]
[WhiteFideId "4164083"]
[BlackFideId "24142573"]
[WhiteElo "2190"]
[BlackElo "2075"]
[Result "1/2-1/2"]
[Round "03"]
[TimeControl "180+1"]
[Date "2022.02.08"]
[WhiteClock "0:00:06"]
[BlackClock "0:00:07"]

1. e4 {[%clk 0:03:00]}  d5 {[%clk 0:02:55]} 2. exd5 {[%clk 0:03:00]}  Qxd5 {[%clk 0:02:55]} 3. Nc3 {[%clk 0:03:00]}  Qd6 {[%clk 0:02:54]} 4. d4 {[%clk 0:02:57]}  Nf6 {[%clk 0:02:54]} 5. Nf3 {[%clk 0:02:50]}  c6 {[%clk 0:02:51]} 6. g3 {[%clk 0:02:48]}  Bg4 {[%clk 0:02:48]} 7. Bg2 {[%clk 0:02:47]}  e6 {[%clk 0:02:47]} 8. O-O {[%clk 0:02:47]}  Nbd7 {[%clk 0:02:47]} 9. h3 {[%clk 0:02:45]}  Bxf3 {[%clk 0:02:46]} 10. Bxf3 {[%clk 0:02:43]}  Qc7 {[%clk 0:02:46]} 11. Qe2 {[%clk 0:02:37]}  Bd6 {[%clk 0:02:39]} 12. Ne4 {[%clk 0:02:29]}  Nxe4 {[%clk 0:02:38]} 13. Bxe4 {[%clk 0:02:29]}  Nf6 {[%clk 0:02:35]} 14. Bg2 {[%clk 0:02:29]}  h6 {[%clk 0:02:32]} 15. c4 {[%clk 0:02:27]}  O-O {[%clk 0:02:21]} 16. c5 {[%clk 0:02:25]}  Be7 {[%clk 0:02:21]} 17. Bf4 {[%clk 0:02:25]}  Qd7 {[%clk 0:02:14]} 18. Rad1 {[%clk 0:02:17]}  Nd5 {[%clk 0:02:09]} 19. Be5 {[%clk 0:02:12]}  f6 {[%clk 0:01:27]} 20. Bf4 {[%clk 0:02:12]}  Rfe8 {[%clk 0:01:07]} 21. Be3 {[%clk 0:01:44]}  f5 {[%clk 0:01:01]} 22. Rfe1 {[%clk 0:01:25]}  Bf6 {[%clk 0:01:00]} 23. Bf3 {[%clk 0:01:14]}  Re7 {[%clk 0:00:50]} 24. Qc4 {[%clk 0:01:12]}  Rd8 {[%clk 0:00:47]} 25. b4 {[%clk 0:01:10]}  Kh8 {[%clk 0:00:37]} 26. a4 {[%clk 0:01:07]}  Qc7 {[%clk 0:00:37]} 27. Bxd5 {[%clk 0:00:57]}  exd5 {[%clk 0:00:29]} 28. Qc2 {[%clk 0:00:57]}  Qd7 {[%clk 0:00:26]} 29. Qd2 {[%clk 0:00:52]}  Kh7 {[%clk 0:00:22]} 30. Bf4 {[%clk 0:00:50]}  Rde8 {[%clk 0:00:20]} 31. Rxe7 {[%clk 0:00:29]}  Rxe7 {[%clk 0:00:19]} 32. Qd3 {[%clk 0:00:23]}  Re4 {[%clk 0:00:19]} 33. Be3 {[%clk 0:00:23]}  Qe6 {[%clk 0:00:18]} 34. Kg2 {[%clk 0:00:21]}  Kg8 {[%clk 0:00:17]} 35. b5 {[%clk 0:00:21]}  f4 {[%clk 0:00:16]} 36. gxf4 {[%clk 0:00:20]}  Qf5 {[%clk 0:00:16]} 37. Rg1 {[%clk 0:00:16]}  Rxf4 {[%clk 0:00:12]} 38. Qxf5 {[%clk 0:00:16]}  Rxf5 {[%clk 0:00:12]} 39. bxc6 {[%clk 0:00:16]}  bxc6 {[%clk 0:00:12]} 40. Rb1 {[%clk 0:00:16]}  Bg5 {[%clk 0:00:10]} 41. Rb8+ {[%clk 0:00:15]}  Kh7 {[%clk 0:00:11]} 42. Rc8 {[%clk 0:00:15]}  Rf6 {[%clk 0:00:10]} 43. Bxg5 {[%clk 0:00:14]}  hxg5 {[%clk 0:00:10]} 44. Rc7 {[%clk 0:00:14]}  a5 {[%clk 0:00:10]} 45. Ra7 {[%clk 0:00:13]}  Rf4 {[%clk 0:00:10]} 46. Rxa5 {[%clk 0:00:13]}  Rxd4 {[%clk 0:00:11]} 47. Ra6 {[%clk 0:00:13]}  Rc4 {[%clk 0:00:11]} 48. Rxc6 {[%clk 0:00:13]}  Rxa4 {[%clk 0:00:12]} 49. Rd6 {[%clk 0:00:13]}  d4 {[%clk 0:00:11]} 50. Kf3 {[%clk 0:00:13]}  Rc4 {[%clk 0:00:11]} 51. Rd5 {[%clk 0:00:12]}  Rc3+ {[%clk 0:00:08]} 52. Kg4 {[%clk 0:00:12]}  d3 {[%clk 0:00:08]} 53. Kxg5 {[%clk 0:00:11]}  Rc2 {[%clk 0:00:05]} 54. Rxd3 {[%clk 0:00:10]}  Rxc5+ {[%clk 0:00:05]} 55. Kg4 {[%clk 0:00:10]}  Rc4+ {[%clk 0:00:06]} 56. f4 {[%clk 0:00:10]}  Rc5 {[%clk 0:00:06]} 57. f5 {[%clk 0:00:10]}  Rc4+ {[%clk 0:00:06]} 58. Kg5 {[%clk 0:00:10]}  Rc1 {[%clk 0:00:07]} 59. Rd7 {[%clk 0:00:10]}  Rg1+ {[%clk 0:00:07]} 60. Kh5 {[%clk 0:00:09]}  Kg8 {[%clk 0:00:07]} 61. h4 {[%clk 0:00:08]}  Rg2 {[%clk 0:00:07]} 62. Rd4 {[%clk 0:00:07]}  Rf2 {[%clk 0:00:07]} 63. Kg5 {[%clk 0:00:07]}  Rg2+ {[%clk 0:00:06]} 64. Rg4 {[%clk 0:00:07]}  Ra2 {[%clk 0:00:06]} 65. h5 {[%clk 0:00:07]}  Kf7 {[%clk 0:00:06]} 66. Rb4 {[%clk 0:00:06]}  Rg2+ {[%clk 0:00:05]} 67. Kf4 {[%clk 0:00:06]}  Rf2+ {[%clk 0:00:06]} 68. Ke5 {[%clk 0:00:06]}  Re2+ {[%clk 0:00:06]} 69. Re4 {[%clk 0:00:06]}  Rh2 {[%clk 0:00:06]} 70. Ra4 {[%clk 0:00:05]}  Rxh5 {[%clk 0:00:05]} 71. Ra7+ {[%clk 0:00:05]}  Kf8 {[%clk 0:00:05]} 72. Ke6 {[%clk 0:00:05]}  Rh6+ {[%clk 0:00:05]} 73. Ke5 {[%clk 0:00:05]}  Rb6 {[%clk 0:00:05]} 74. Ra8+ {[%clk 0:00:04]}  Kf7 {[%clk 0:00:06]} 75. Ra7+ {[%clk 0:00:05]}  Kf8 {[%clk 0:00:06]} 76. Ra8+ {[%clk 0:00:05]}  Kf7 {[%clk 0:00:07]} 77. Ra7+ {[%clk 0:00:06]}  Kf8 {[%clk 0:00:07]} 1/2-1/2


[Site "https://www.chess.com"]

[Event "Early Titled Tuesday Blitz | February 8 2022"]
[White "Kravtsiv, Martyn"]
[Black "Seo, Jung Min"]
[WhiteFideId "14113147"]
[BlackFideId "1734687"]
[WhiteElo "2694"]
[BlackElo "2401"]
[Result "0-1"]
[Round "03"]
[TimeControl "180+1"]
[Date "2022.02.08"]
[WhiteClock "0:00:02"]
[BlackClock "0:00:34"]

1. e4 {[%clk 0:03:00]}  e5 {[%clk 0:02:59]} 2. Nf3 {[%clk 0:02:59]}  Nf6 {[%clk 0:02:59]} 3. Nc3 {[%clk 0:03:00]}  Nc6 {[%clk 0:02:59]} 4. a4 {[%clk 0:02:59]}  Bb4 {[%clk 0:02:57]} 5. Bd3 {[%clk 0:02:59]}  O-O {[%clk 0:02:56]} 6. O-O {[%clk 0:02:58]}  Re8 {[%clk 0:02:57]} 7. Re1 {[%clk 0:02:56]}  a6 {[%clk 0:02:53]} 8. Nd5 {[%clk 0:02:55]}  Bf8 {[%clk 0:02:50]} 9. Bc4 {[%clk 0:02:48]}  d6 {[%clk 0:02:49]} 10. Ng5 {[%clk 0:02:44]}  Be6 {[%clk 0:02:35]} 11. Nxe6 {[%clk 0:02:42]}  fxe6 {[%clk 0:02:35]} 12. Nxf6+ {[%clk 0:02:40]}  Qxf6 {[%clk 0:02:35]} 13. d3 {[%clk 0:02:39]}  Ne7 {[%clk 0:02:29]} 14. Qe2 {[%clk 0:02:34]}  Ng6 {[%clk 0:02:28]} 15. g3 {[%clk 0:02:34]}  c6 {[%clk 0:02:27]} 16. Bd2 {[%clk 0:02:33]}  d5 {[%clk 0:02:24]} 17. Bb3 {[%clk 0:02:31]}  Bd6 {[%clk 0:02:24]} 18. Kg2 {[%clk 0:02:28]}  Nf8 {[%clk 0:02:23]} 19. c4 {[%clk 0:02:20]}  dxc4 {[%clk 0:02:15]} 20. Bxc4 {[%clk 0:02:07]}  a5 {[%clk 0:02:14]} 21. Rf1 {[%clk 0:02:04]}  Nd7 {[%clk 0:02:13]} 22. f4 {[%clk 0:01:56]}  exf4 {[%clk 0:02:12]} 23. gxf4 {[%clk 0:01:56]}  Kh8 {[%clk 0:02:05]} 24. e5 {[%clk 0:01:48]}  Qg6+ {[%clk 0:02:03]} 25. Kh1 {[%clk 0:01:47]}  Bb4 {[%clk 0:01:50]} 26. Be3 {[%clk 0:01:35]}  Bc5 {[%clk 0:01:42]} 27. d4 {[%clk 0:01:34]}  Bb4 {[%clk 0:01:41]} 28. Bd3 {[%clk 0:01:23]}  Qf7 {[%clk 0:01:39]} 29. Rf3 {[%clk 0:01:22]}  g6 {[%clk 0:01:33]} 30. Rg1 {[%clk 0:01:21]}  Rg8 {[%clk 0:01:29]} 31. Rh3 {[%clk 0:01:16]}  Rg7 {[%clk 0:01:24]} 32. Qg4 {[%clk 0:01:09]}  Rag8 {[%clk 0:01:23]} 33. Bf2 {[%clk 0:00:43]}  Nb6 {[%clk 0:01:19]} 34. Bh4 {[%clk 0:00:38]}  Be7 {[%clk 0:01:13]} 35. Be4 {[%clk 0:00:16]}  Nd5 {[%clk 0:01:08]} 36. Bxd5 {[%clk 0:00:16]}  cxd5 {[%clk 0:01:08]} 37. Bxe7 {[%clk 0:00:05]}  Qxe7 {[%clk 0:01:08]} 38. Rc1 {[%clk 0:00:05]}  Rf8 {[%clk 0:00:59]} 39. Rf3 {[%clk 0:00:03]}  Rgf7 {[%clk 0:00:40]} 40. Rc5 {[%clk 0:00:02]}  g5 {[%clk 0:00:36]} 41. Rxa5 {[%clk 0:00:02]}  Rxf4 {[%clk 0:00:35]} 42. Rxf4 {[%clk 0:00:02]}  Rxf4 {[%clk 0:00:34]} 43. Ra8+ {[%clk 0:00:02]}  Kg7 {[%clk 0:00:34]} 0-1


[Site "https://www.chess.com"]